fUST/lending_fUST_20240925
["ID","MTS","AMOUNT","RATE_DAILY","PERIOD"]
[339099598,1727243454014,-151.0,0.00016986,2]
[339099599,1727243454024,-1803.519076,0.00016986,2]
[339099600,1727243454033,-151.0,0.00016986,2]
[339099601,1727243454043,-1834.34,0.00016986,2]
[339099602,1727243454053,-500.0,0.00016986,2]
[339099603,1727243454063,-1803.519076,0.00016986,2]
[339099604,1727243454072,-511.05424073,0.00016986,2]
[339099605,1727243454082,-500.0,0.00016986,2]
[339099606,1727243454091,-500.0,0.00016986,2]
[339099607,1727243454102,-500.0,0.00016986,2]
[339099608,1727243454111,-500.0,0.00016986,2]
[339099609,1727243454121,-370.89419129,0.00016986,2]
[339099610,1727243454131,-502.52557784,0.00016986,2]
[339099611,1727243454141,-500.0,0.00016986,2]
[339099612,1727243454150,-500.0,0.00016986,2]
[339099613,1727243454160,-1115.13,0.00016986,2]
[339099614,1727243454169,-500.0,0.00016986,2]
[339099615,1727243454178,-500.0,0.00016986,2]
[339099616,1727243454188,-453.888966,0.00016986,2]
[339099617,1727243454197,-500.0,0.00016986,2]
[339099618,1727243454207,-619.53,0.00016986,2]
[339099619,1727243454217,-429.546028,0.00016986,2]
[339099620,1727243454226,-453.888966,0.00016986,2]
[339099621,1727243454235,-718.15,0.00016986,2]
[339099622,1727243454245,-429.546028,0.00016986,2]
[339099623,1727243454254,-493.37008349,0.00016986,2]
[339099624,1727243454265,-1557.93561,0.00016986,2]
[339099625,1727243454275,-447.5637357,0.00016986,2]
[339099626,1727243454285,-500.0,0.00016986,2]
[339099627,1727243454295,-1557.93561,0.00016986,2]
[339099628,1727243454304,-151.0,0.00016986,2]
[339099629,1727243454314,-500.0,0.00016986,2]
[339099630,1727243454323,-151.0,0.00016986,2]
[339099631,1727243454333,-500.0,0.00016986,2]
[339099632,1727243454342,-500.0,0.00016986,2]
[339099633,1727243454351,-500.0,0.00016986,2]
[339099634,1727243454361,-500.0,0.00016986,2]
[339099635,1727243454371,-500.0,0.00016986,2]
[339099636,1727243454381,-500.0,0.00016986,2]
[339099637,1727243454390,-500.0,0.00016986,2]
[339099638,1727243454399,-500.0,0.00016986,2]
[339099639,1727243454409,-500.0,0.00016986,2]
[339099640,1727243454418,-500.0,0.00016986,2]
[339099641,1727243454427,-1098.19,0.00016986,2]
[339099642,1727243454436,-500.0,0.00016986,2]
[339099643,1727243454445,-500.0,0.00016986,2]
[339099644,1727243454455,-558.88,0.00016986,2]
[339099645,1727243454465,-500.0,0.00016986,2]
[339099646,1727243454474,-500.0,0.00016986,2]
[339099647,1727243454483,-500.0,0.00016986,2]
[339099648,1727243454493,-164.920316,0.00016986,2]
[339099649,1727243454503,-500.0,0.00016986,2]
[339099650,1727243454513,-500.0,0.00016986,2]
[339099651,1727243454522,-164.920316,0.00016986,2]
[339099652,1727243454532,-1000.0,0.00016986,2]
[339099653,1727243454541,-500.0,0.00016986,2]
[339099654,1727243454550,-500.0,0.00016986,2]
[339099655,1727243454560,-500.0,0.00016986,2]
[339099656,1727243454568,-500.0,0.00016986,2]
[339099657,1727243454578,-510.30425611,0.00016986,2]
[339099658,1727243454587,-861.19,0.00016986,2]
[339099659,1727243454596,-1631.34,0.00016986,2]
[339099660,1727243454606,-1588.79,0.00016986,2]
[339099661,1727243454615,-1069.57,0.00016986,2]
[339099662,1727243454625,-810.55,0.00016986,2]
[339099663,1727243454635,-1034.58,0.00016986,2]
[339099664,1727243454644,-277.129831,0.00016986,2]
[339099665,1727243454654,-600.84928076,0.00016986,2]
[339099666,1727243454663,-500.0,0.00016986,2]
[339099667,1727243454673,-712.02,0.00016986,2]
[339099668,1727243454684,-1220.861504,0.00016986,2]
[339099669,1727243454694,-277.129831,0.00016986,2]
[339099670,1727243454703,-839.11,0.00016986,2]
[339099671,1727243454713,-1220.861504,0.00016986,2]
[339099672,1727243454723,-500.0,0.00016986,2]
[339099673,1727243454733,-151.0,0.00016986,2]
[339099674,1727243454742,-500.0,0.00016986,2]
[339099675,1727243454752,-755.66,0.00016986,2]
[339099676,1727243454762,-500.0,0.00016986,2]
[339099677,1727243454771,-500.0,0.00016986,2]
[339099678,1727243454781,-624.15497439,0.00016986,2]
[339099679,1727243454791,-500.0,0.00016986,2]
[339099680,1727243454800,-926.9,0.00016986,2]
[339099681,1727243454810,-730.14,0.00016986,2]
[339099682,1727243454819,-1728.28,0.00016986,2]
[339099683,1727243454830,-1107.53,0.00016986,2]
[339099684,1727243454841,-500.0,0.00016986,2]
[339099685,1727243454850,-500.0,0.00016986,2]
[339099686,1727243454859,-500.0,0.00016986,2]
[339099687,1727243454869,-500.0,0.00016986,2]
[339099688,1727243454878,-33026.62,0.00016986,2]
[339099689,1727243454889,-500.0,0.00016986,2]
[339099690,1727243454898,-717.39,0.00016986,2]
[339099691,1727243454907,-647.08,0.00016986,2]
[339099692,1727243454916,-666.99,0.00016986,2]
[339099693,1727243454926,-500.0,0.00016986,2]
[339099694,1727243454935,-500.0,0.00016986,2]
[339099695,1727243454944,-500.0,0.00016986,2]
[339099696,1727243454954,-4604.52,0.00016986,2]
[339099697,1727243454964,-660.615047,0.00016986,2]
[339099698,1727243454974,-500.0,0.00016986,2]
[339099699,1727243454984,-500.0,0.00016986,2]
[339099700,1727243454993,-620.15540022,0.00016986,2]
[339099701,1727243455003,-660.615047,0.00016986,2]
[339099702,1727243455013,-500.0,0.00016986,2]
[339099703,1727243455023,-1016.05,0.00016986,2]
[339099704,1727243455033,-508.55,0.00016986,2]
[339099705,1727243455042,-1022.74,0.00016986,2]
[339099706,1727243455052,-500.0,0.00016986,2]
[339099707,1727243455062,-500.0,0.00016986,2]
[339099708,1727243455071,-500.0,0.00016986,2]
[339099709,1727243455080,-500.0,0.00016986,2]
[339099710,1727243455089,-500.0,0.00016986,2]
[339099711,1727243455099,-822.77,0.00016986,2]
[339099712,1727243455108,-500.0,0.00016986,2]
[339099713,1727243455117,-500.0,0.00016986,2]
[339099714,1727243455127,-500.0,0.00016986,2]
[339099715,1727243455137,-282.01,0.00016986,2]
[339099716,1727243455146,-794.13,0.00016986,2]
[339099717,1727243455155,-199.74209557,0.00016986,2]
[339099718,1727243455165,-903.3,0.00016986,2]
[339099719,1727243455174,-500.0,0.00016986,2]
[339099720,1727243455184,-500.0,0.00016986,2]
[339099721,1727243455194,-500.0,0.00016986,2]
[339099722,1727243455203,-965.95,0.00016986,2]
[339099723,1727243455262,-558.07,0.00016986,2]
[339099724,1727243455272,-500.0,0.00016986,2]
[339099725,1727243455281,-462.699491,0.00016986,2]
[339099726,1727243455290,-151.0,0.00016986,2]
[339099727,1727243455299,-957.29,0.00016986,2]
[339099728,1727243455307,-4414.59,0.00016986,2]
[339099729,1727243455317,-500.0,0.00016986,2]
[339099730,1727243455326,-462.699491,0.00016986,2]
[339099731,1727243455334,-500.0,0.00016986,2]
[339099732,1727243455343,-500.0,0.00016986,2]
[339099733,1727243455352,-500.0,0.00016986,2]
[339099734,1727243455361,-500.0,0.00016986,2]
[339099735,1727243455370,-500.0,0.00016986,2]
[339099736,1727243455379,-505.05486318,0.00016986,2]
[339099737,1727243455389,-1022.01,0.00016986,2]
[339099738,1727243455398,-500.0,0.00016986,2]
[339099739,1727243455408,-500.0,0.00016986,2]
[339099740,1727243455417,-500.0,0.00016986,2]
[339099741,1727243455427,-500.0,0.00016986,2]
[339099742,1727243455436,-619.5,0.00016986,2]
[339099743,1727243455445,-916.39,0.00016986,2]
[339099744,1727243455454,-500.0,0.00016986,2]
[339099745,1727243455463,-664.23,0.00016986,2]
[339099746,1727243455472,-500.0,0.00016986,2]
[339099747,1727243455481,-500.0,0.00016986,2]
[339099748,1727243455491,-578.81,0.00016986,2]
[339099749,1727243455500,-500.0,0.00016986,2]
[339099750,1727243455509,-1092.36,0.00016986,2]
[339099751,1727243455519,-510.67197481,0.00016986,2]
[339099752,1727243455528,-500.0,0.00016986,2]
[339099753,1727243455538,-583.03,0.00016986,2]
[339099754,1727243455547,-257.17776565,0.00016986,2]
[339099755,1727243455558,-549.19,0.00016986,2]
[339099756,1727243455567,-500.0,0.00016986,2]
[339099757,1727243455577,-500.0,0.00016986,2]
[339099758,1727243455586,-500.0,0.00016986,2]
[339099759,1727243455595,-500.0,0.00016986,2]
[339099760,1727243455605,-500.0,0.00016986,2]
[339099761,1727243455616,-500.0,0.00016986,2]
[339099762,1727243455627,-695.048327,0.00016986,2]
[339099763,1727243455637,-588.16,0.00016986,2]
[339099764,1727243455646,-500.0,0.00016986,2]
[339099765,1727243455656,-1574.512519,0.00016986,2]
[339099766,1727243455665,-500.0,0.00016986,2]
[339099767,1727243455675,-695.048327,0.00016986,2]
[339099768,1727243455684,-500.0,0.00016986,2]
[339099769,1727243455693,-1257.3,0.00016986,2]
[339099770,1727243455702,-1328.67,0.00016986,2]
[339099771,1727243455711,-500.0,0.00016986,2]
[339099772,1727243455720,-715.1,0.00016986,2]
[339099773,1727243455730,-1574.512519,0.00016986,2]
[339099774,1727243455739,-500.0,0.00016986,2]
[339099775,1727243455748,-745.56,0.00016986,2]
[339099776,1727243455757,-500.0,0.00016986,2]
[339099777,1727243455767,-514.97,0.00016986,2]
[339099778,1727243455776,-500.0,0.00016986,2]
[339099779,1727243455785,-414.43675477,0.00016986,2]
[339099780,1727243455795,-500.0,0.00016986,2]
[339099781,1727243455805,-533.29018558,0.00016986,2]
[339099782,1727243455814,-500.0,0.00016986,2]
[339099783,1727243455823,-182.14714041,0.00016986,2]
[339099784,1727243455833,-500.0,0.00016986,2]
[339099785,1727243455842,-500.0,0.00016986,2]
[339099786,1727243455851,-500.0,0.00016986,2]
[339099787,1727243455860,-500.0,0.00016986,2]
[339099788,1727243455870,-500.0,0.00016986,2]
[339099789,1727243455879,-500.0,0.00016986,2]
[339099790,1727243455889,-500.0,0.00016986,2]
[339099791,1727243455898,-500.0,0.00016986,2]
[339099792,1727243455907,-500.0,0.00016986,2]
[339099793,1727243455916,-500.0,0.00016986,2]
[339099794,1727243455926,-542.96,0.00016986,2]
[339099795,1727243455935,-661.1,0.00016986,2]
[339099796,1727243455944,-703.19,0.00016986,2]
[339099797,1727243455953,-500.0,0.00016986,2]
[339099798,1727243455963,-500.0,0.00016986,2]
[339099799,1727243455972,-500.0,0.00016986,2]
[339099800,1727243455982,-500.0,0.00016986,2]
[339099801,1727243455991,-500.0,0.00016986,2]
[339099802,1727243456000,-610.52796488,0.00016986,2]
[339099803,1727243456009,-565.58,0.00016986,2]
[339099804,1727243456018,-500.0,0.00016986,2]
[339099805,1727243456027,-445.891827,0.00016986,2]
[339099806,1727243456036,-576.55182439,0.00016986,2]
[339099807,1727243456045,-320.89483328,0.00016986,2]
[339099808,1727243456055,-500.0,0.00016986,2]
[339099809,1727243456064,-500.0,0.00016986,2]
[339099810,1727243456073,-445.891827,0.00016986,2]
[339099811,1727243456083,-500.0,0.00016986,2]
[339099812,1727243456092,-701.347874,0.00016986,2]
[339099813,1727243456101,-500.0,0.00016986,2]
[339099814,1727243456110,-846.34,0.00016986,2]
[339099815,1727243456120,-500.0,0.00016986,2]
[339099816,1727243456130,-503.99155192,0.00016986,2]
[339099817,1727243456140,-500.0,0.00016986,2]
[339099818,1727243456150,-500.0,0.00016986,2]
[339099819,1727243456159,-500.0,0.00016986,2]
[339099820,1727243456168,-701.347874,0.00016986,2]
[339099821,1727243456178,-500.0,0.00016986,2]
[339099822,1727243456187,-500.0,0.00016986,2]
[339099823,1727243456196,-609.2959182,0.00016986,2]
[339099824,1727243456205,-1400.290814,0.00016986,2]
[339099825,1727243456214,-500.0,0.00016986,2]
[339099826,1727243456223,-500.0,0.00016986,2]
[339099827,1727243456232,-2112.33,0.00016986,2]
[339099828,1727243456243,-500.0,0.00016986,2]
[339099829,1727243456253,-517.61207423,0.00016986,2]
[339099830,1727243456262,-1400.290814,0.00016986,2]
[339099831,1727243456272,-506.65179589,0.00016986,2]
[339099832,1727243456282,-500.0,0.00016986,2]
[339099833,1727243456291,-755.39,0.00016986,2]
[339099834,1727243456301,-500.0,0.00016986,2]
[339099835,1727243456310,-500.0,0.00016986,2]
[339099836,1727243456320,-500.0,0.00016986,2]
[339099837,1727243456329,-569.79,0.00016986,2]
[339099838,1727243456339,-500.0,0.00016986,2]
[339099839,1727243456348,-500.0,0.00016986,2]
[339099840,1727243456357,-500.0,0.00016986,2]
[339099841,1727243456367,-443.75768666,0.00016986,2]
[339099842,1727243456376,-500.0,0.00016986,2]
[339099843,1727243456387,-500.0,0.00016986,2]
[339099844,1727243456397,-500.0,0.00016986,2]
[339099845,1727243456406,-500.0,0.00016986,2]
[339099846,1727243456415,-560.35,0.00016986,2]
[339099847,1727243456425,-500.0,0.00016986,2]
[339099848,1727243456434,-574.16,0.00016986,2]
[339099849,1727243456443,-500.0,0.00016986,2]
[339099850,1727243456453,-500.0,0.00016986,2]
[339099851,1727243456463,-664.81,0.00016986,2]
[339099852,1727243456472,-500.0,0.00016986,2]
[339099853,1727243456481,-500.0,0.00016986,2]
[339099854,1727243456490,-500.0,0.00016986,2]
[339099855,1727243456500,-705.37,0.00016986,2]
[339099856,1727243456509,-500.0,0.00016986,2]
[339099857,1727243456519,-500.0,0.00016986,2]
[339099858,1727243456530,-510.32515356,0.00016986,2]
[339099859,1727243456539,-500.0,0.00016986,2]
[339099860,1727243456549,-500.0,0.00016986,2]
[339099861,1727243456559,-500.0,0.00016986,2]
[339099862,1727243456568,-573.44886597,0.00016986,2]
[339099863,1727243456578,-500.0,0.00016986,2]
[339099864,1727243456588,-500.0,0.00016986,2]
[339099865,1727243456598,-500.0,0.00016986,2]
[339099866,1727243456607,-629.02,0.00016986,2]
[339099867,1727243456617,-500.0,0.00016986,2]
[339099868,1727243456626,-500.0,0.00016986,2]
[339099869,1727243456636,-500.0,0.00016986,2]
[339099870,1727243456646,-500.0,0.00016986,2]
[339099871,1727243456655,-500.0,0.00016986,2]
[339099872,1727243456665,-500.0,0.00016986,2]
[339099873,1727243456674,-527.32,0.00016986,2]
[339099874,1727243456686,-500.0,0.00016986,2]
[339099875,1727243456695,-500.0,0.00016986,2]
[339099876,1727243456704,-839.21,0.00016986,2]
[339099877,1727243456714,-729.27,0.00016986,2]
[339099878,1727243456725,-500.0,0.00016986,2]
[339099879,1727243456734,-500.0,0.00016986,2]
[339099880,1727243456743,-500.0,0.00016986,2]
[339099881,1727243456754,-500.0,0.00016986,2]
[339099882,1727243456763,-500.0,0.00016986,2]
[339099883,1727243456773,-1661.69,0.00016986,2]
[339099884,1727243456782,-500.0,0.00016986,2]
[339099885,1727243456792,-500.0,0.00016986,2]
[339099886,1727243456802,-500.0,0.00016986,2]
[339099887,1727243456812,-2834.06,0.00016986,2]
[339099888,1727243456821,-610.0,0.00016986,2]
[339099889,1727243456831,-500.0,0.00016986,2]
[339099890,1727243456841,-500.0,0.00016986,2]
[339099891,1727243456851,-151.0,0.00016986,2]
[339099892,1727243456863,-933.08,0.00016986,2]
[339099893,1727243456873,-518.96,0.00016986,2]
[339099894,1727243456883,-500.0,0.00016986,2]
[339099895,1727243456892,-500.0,0.00016986,2]
[339099896,1727243456902,-500.0,0.00016986,2]
[339099897,1727243456914,-500.0,0.00016998,2]
[339099898,1727243456925,-500.0,0.00016998,2]
[339099899,1727243456936,-500.0,0.00016998,2]
[339099900,1727243456947,-542.43205943,0.00016998,2]
[339099901,1727243456956,-500.0,0.00016998,2]
[339099902,1727243456966,-500.0,0.00016998,2]
[339099903,1727243456976,-500.0,0.00016998,2]
[339099904,1727243456986,-500.0,0.00016998,2]
[339099905,1727243456995,-266.0,0.00016998,2]
[339099906,1727243457005,-450.0,0.00017,3]
[339099907,1727243457015,-450.0,0.00017,3]
[339099908,1727243457025,-1000.0,0.00017,17]
[339099909,1727243457035,-418.0865874,0.00017009,2]
[339099910,1727243457044,-209.0432937,0.00017009,2]
[339099911,1727243457053,-209.0432937,0.00017009,2]
[339099912,1727243457063,-209.0432937,0.00017009,2]
[339099913,1727243457072,-209.0432937,0.00017009,2]
[339099914,1727243457081,-209.0432937,0.00017009,2]
[339099915,1727243457090,-209.0432937,0.00017009,2]
[339099916,1727243457099,-209.0432937,0.00017009,2]
[339099917,1727243457108,-209.0432937,0.00017009,2]
[339099918,1727243457118,-1000.0,0.00017021,2]
[339099919,1727243457128,-1000.0,0.00017021,2]
[339099920,1727243457138,-500.0,0.00017021,2]
[339099921,1727243457148,-500.0,0.00017021,2]
[339099922,1727243457157,-1000.0,0.00017021,2]
[339099923,1727243457167,-833.52428422,0.00017021,2]
[339099924,1727243457176,-1000.0,0.00017069,2]
[339099925,1727243457186,-450.0,0.000171,3]
[339099926,1727243457195,-3000.0,0.000171,2]
[339099927,1727243457205,-3000.0,0.0001711,2]
[339099928,1727243457214,-1000.0,0.00017114,2]
[339099929,1727243457223,-3000.0,0.0001712,2]
[339099930,1727243457233,-3000.0,0.0001713,2]
[339099931,1727243457245,-3000.0,0.0001714,2]
[339099932,1727243457255,-3000.0,0.0001715,2]
[339099933,1727243457264,-3000.0,0.0001716,2]
[339099934,1727243457273,-150.01,0.00017169,2]
[339099935,1727243457283,-12077.50996053,0.00017169,2]
[339099936,1727243457292,-151.0,0.00017169,2]
[339099937,1727243457301,-151.0,0.00017169,2]
[339099938,1727243457310,-151.0,0.00017169,2]
[339099939,1727243457319,-218.848757,0.00017169,2]
[339099940,1727243457328,-218.848757,0.00017169,2]
[339099941,1727243457338,-151.0,0.00017169,2]
[339099942,1727243457347,-151.0,0.00017169,2]
[339099943,1727243457356,-151.0,0.00017169,2]
[339099944,1727243457365,-151.0,0.00017169,2]
[339099945,1727243457374,-151.0,0.00017169,2]
[339099946,1727243457384,-1803.519076,0.00017169,2]
[339099947,1727243457394,-151.0,0.00017169,2]
[339099948,1727243457403,-1803.519076,0.00017169,2]
[339099949,1727243457412,-151.0,0.00017169,2]
[339099950,1727243457422,-3000.0,0.0001717,2]
[339099951,1727243457432,-151.0,0.0001718,2]
[339099952,1727243457442,-151.0,0.0001718,2]
[339099953,1727243457451,-151.0,0.0001718,2]
[339099954,1727243457460,-2030.925849,0.0001718,2]
[339099955,1727243457469,-2030.925849,0.0001718,2]
[339099956,1727243457478,-151.0,0.0001718,2]
[339099957,1727243457487,-151.0,0.0001718,2]
[339099958,1727243457496,-300.956575,0.0001718,2]
[339099959,1727243457504,-300.956575,0.0001718,2]
[339099960,1727243457513,-151.0,0.0001718,2]
[339099961,1727243457522,-859.35776,0.0001718,2]
[339099962,1727243457531,-859.35776,0.0001718,2]
[339099963,1727243457540,-405.366119,0.0001718,2]
[339099964,1727243457549,-405.366119,0.0001718,2]
[339099965,1727243457558,-151.0,0.0001718,2]
[339099966,1727243457568,-3000.0,0.0001718,2]
[339099967,1727243457577,-151.0,0.0001718,2]
[339099968,1727243457587,-151.0,0.0001718,2]
[339099969,1727243457597,-151.0,0.0001718,2]
[339099970,1727243457608,-164.920316,0.0001718,2]
[339099971,1727243457618,-164.920316,0.0001718,2]
[339099972,1727243457630,-1220.861504,0.0001718,2]
[339099973,1727243457641,-1220.861504,0.0001718,2]
[339099974,1727243457650,-3000.0,0.0001719,2]
[339099975,1727243457660,-3000.0,0.000172,2]
[339099976,1727243457669,-3000.0,0.0001721,2]
[339099977,1727243457678,-3000.0,0.0001722,2]
[339099978,1727243457687,-3000.0,0.0001723,2]
[339099979,1727243457697,-3000.0,0.0001724,2]
[339099980,1727243457706,-150.0,0.0001724,2]
[339099981,1727243457717,-316.92493701,0.00017249,2]
[339099982,1727243457726,-151.0,0.0001725,2]
[339099983,1727243457735,-2416.873656,0.0001725,2]
[339099984,1727243457746,-2416.873656,0.0001725,2]
[339099985,1727243457755,-151.0,0.0001725,2]
[339099986,1727243457765,-3000.0,0.0001725,2]
[339099987,1727243457774,-151.0,0.0001726,2]
[339099988,1727243457783,-500.0,0.0001726,2]
[339099989,1727243457792,-151.0,0.0001726,2]
[339099990,1727243457801,-151.0,0.0001726,2]
[339099991,1727243457810,-151.0,0.0001726,2]
[339099992,1727243457819,-151.0,0.0001726,2]
[339099993,1727243457829,-183.554583,0.0001726,2]
[339099994,1727243457838,-183.554583,0.0001726,2]
[339099995,1727243457847,-393.28561,0.0001726,2]
[339099996,1727243457856,-393.28561,0.0001726,2]
[339099997,1727243457867,-151.0,0.0001726,2]
[339099998,1727243457877,-151.0,0.0001726,2]
[339099999,1727243457888,-202.530774,0.0001726,2]
[339100000,1727243457897,-202.530774,0.0001726,2]
[339100001,1727243457907,-151.0,0.0001726,2]
[339100002,1727243457916,-151.0,0.0001726,2]
[339100003,1727243457925,-230.429722,0.0001726,2]
[339100004,1727243457934,-230.429722,0.0001726,2]
[339100005,1727243457944,-266.617909,0.0001726,2]
[339100006,1727243457954,-266.617909,0.0001726,2]
[339100007,1727243457963,-500.0,0.0001726,2]
[339100008,1727243457972,-500.0,0.0001726,2]
[339100009,1727243457982,-499.07383664,0.0001726,2]
[339100010,1727243457991,-500.0,0.0001726,2]
[339100011,1727243458001,-500.0,0.0001726,2]
[339100012,1727243458011,-500.0,0.0001726,2]
[339100013,1727243458022,-500.0,0.0001726,2]
[339100014,1727243458033,-500.0,0.0001726,2]
[339100015,1727243458042,-500.0,0.0001726,2]
[339100016,1727243458052,-500.0,0.0001726,2]
[339100017,1727243458062,-500.0,0.0001726,2]
[339100018,1727243458072,-500.0,0.0001726,2]
[339100019,1727243458082,-500.0,0.0001726,2]
[339100020,1727243458091,-500.0,0.0001726,2]
[339100021,1727243458100,-500.0,0.0001726,2]
[339100022,1727243458109,-529.29,0.0001726,2]
[339100023,1727243458119,-500.0,0.0001726,2]
[339100024,1727243458128,-500.0,0.0001726,2]
[339100025,1727243458139,-507.87690982,0.0001726,2]
[339100026,1727243458150,-554.17584132,0.0001726,2]
[339100027,1727243458159,-570.63,0.0001726,2]
[339100028,1727243458169,-500.0,0.0001726,2]
[339100029,1727243458179,-500.0,0.0001726,2]
[339100030,1727243458189,-500.0,0.0001726,2]
[339100031,1727243458199,-500.0,0.0001726,2]
[339100032,1727243458208,-347.73930454,0.0001726,2]
[339100033,1727243458217,-588.59168497,0.0001726,2]
[339100034,1727243458227,-500.0,0.0001726,5]
[339100035,1727243458237,-500.0,0.0001726,2]
[339100036,1727243458246,-151.0,0.0001726,2]
[339100037,1727243458256,-683.25,0.0001726,2]
[339100038,1727243458266,-646.51152998,0.0001726,2]
[339100039,1727243458275,-501.49432334,0.0001726,2]
[339100040,1727243458285,-500.0,0.0001726,2]
[339100041,1727243458294,-500.0,0.0001726,2]
[339100042,1727243458303,-500.0,0.0001726,2]
[339100043,1727243458313,-500.0,0.0001726,2]
[339100044,1727243458323,-411.97524175,0.0001726,2]
[339100045,1727243458332,-500.0,0.0001726,2]
[339100046,1727243458341,-500.0,0.0001726,2]
[339100047,1727243458351,-484.39814213,0.0001726,2]
[339100048,1727243458360,-513.34352233,0.0001726,2]
[339100049,1727243458370,-500.0,0.0001726,2]
[339100050,1727243458379,-500.0,0.0001726,2]
[339100051,1727243458390,-559.36316392,0.0001726,2]
[339100052,1727243458399,-500.0,0.0001726,2]
[339100053,1727243458409,-500.0,0.0001726,2]
[339100054,1727243458418,-500.0,0.0001726,2]
[339100055,1727243458427,-518.09833693,0.0001726,2]
[339100056,1727243458437,-500.0,0.0001726,2]
[339100057,1727243458446,-251.79440914,0.0001726,2]
[339100058,1727243458455,-551.80315665,0.0001726,2]
[339100059,1727243458465,-620.48,0.0001726,2]
[339100060,1727243458474,-500.0,0.0001726,2]
[339100061,1727243458483,-500.0,0.0001726,2]
[339100062,1727243458493,-500.0,0.0001726,2]
[339100063,1727243458502,-220.2860074,0.0001726,2]
[339100064,1727243458512,-500.0,0.0001726,2]
[339100065,1727243458522,-500.0,0.0001726,2]
[339100066,1727243458532,-500.0,0.0001726,2]
[339100067,1727243458542,-500.0,0.0001726,2]
[339100068,1727243458552,-151.0,0.0001726,2]
[339100069,1727243458562,-500.0,0.0001726,2]
[339100070,1727243458571,-347.947554,0.0001726,2]
[339100071,1727243458581,-500.0,0.0001726,2]
[339100072,1727243458590,-500.0,0.0001726,2]
[339100073,1727243458599,-676.26,0.0001726,2]
[339100074,1727243458609,-525.87912255,0.0001726,2]
[339100075,1727243458619,-500.0,0.0001726,2]
[339100076,1727243458629,-500.0,0.0001726,2]
[339100077,1727243458640,-500.0,0.0001726,2]
[339100078,1727243458650,-500.0,0.0001726,2]
[339100079,1727243458659,-500.0,0.0001726,2]
[339100080,1727243458669,-500.0,0.0001726,2]
[339100081,1727243458681,-500.0,0.0001726,2]
[339100082,1727243458690,-500.0,0.0001726,2]
[339100083,1727243458701,-500.0,0.0001726,2]
[339100084,1727243458710,-500.0,0.0001726,2]
[339100085,1727243458720,-500.0,0.0001726,2]
[339100086,1727243458729,-500.0,0.0001726,2]
[339100087,1727243458739,-500.0,0.0001726,2]
[339100088,1727243458749,-854.12,0.0001726,2]
[339100089,1727243458760,-500.0,0.0001726,2]
[339100090,1727243458770,-525.18,0.0001726,2]
[339100091,1727243458781,-500.0,0.0001726,2]
[339100092,1727243458790,-644.17,0.0001726,2]
[339100093,1727243458799,-508.62770827,0.0001726,2]
[339100094,1727243458808,-784.9,0.0001726,2]
[339100095,1727243458818,-500.0,0.0001726,2]
[339100096,1727243458827,-500.0,0.0001726,2]
[339100097,1727243458838,-734.61,0.0001726,2]